Cogmind - Beta 9.3 --- EXPLORER MODE // 2019.12.17 @ 11:11:33 // Winter2019/RPGLIKE Player: GamerShanksi Result: Destroyed by S-10 Pest with Light Assault Rifle Performance ------------- Evolutions (2) 1000 Regions Visited (3) 600 Robots Destroyed (27) 135 Value Destroyed (769) 769 Prototype IDs (1) 20 Alien Tech Used (0) 0 Bonus (0) 0 TOTAL SCORE: 2524 Bonus ------- None Cogmind --------- Core Integrity 0/900 Matter 235/350 Energy 172/175 System Corruption 0% Temperature Cool (1) Movement Treading (145) Location -8/Materials Parts ------- > --- POWER (1) -------- Light Ion Engine > --- PROPULSION (1) --- Advanced Treads > --- UTILITY (1) ------ Target Analyzer > --- WEAPON (1) ------- (None) > --- INVENTORY (0) ---- (None) Peak State ------------ > --- POWER ------------ Light Ion Engine > --- PROPULSION ------- Improved Flight Unit > --- UTILITY ---------- Improved Terrain Scanner > --- WEAPON ----------- Light Cannon > --- INVENTORY -------- (None) [Rating: 7] Favorites ----------- Power Light Ion Engine Engine Light Ion Engine Propulsion Light Treads Treads Light Treads Hover Unit Improved Hover Unit Flight Unit Improved Flight Unit Utility Improved Terrain Scanner Device Improved Terrain Scanner Processor Signal Interpreter Weapon Light Cannon Ballistic Gun Assault Rifle Ballistic Cannon Light Cannon Build | -11 -10 -9 -8 ------- Run | Scr Mat Mat Mat Slots Evolved . | . . . . Power . | . . . . Propulsion . | . . . . Utility . | . . . . Weapon . | . . . . Parts Attached 13 | 4 1 7 1 Power 2 | 1 . 1 . Engine 2 | 1 . 1 . Core . | . . . . Reactor . | . . . . Propulsion 5 | 1 . 3 1 Treads 3 | 1 . 1 1 Leg . | . . . . Wheel . | . . . . Hover 1 | . . 1 . Flight 1 | . . 1 . Utility 3 | 1 . 2 . Device 1 | . . 1 . Storage . | . . . . Processor 2 | 1 . 1 . Hackware . | . . . . Protection . | . . . . Artifact . | . . . . Weapon 3 | 1 1 1 . Energy Gun . | . . . . Energy Cannon . | . . . . Ballistic Gun 1 | 1 . . . Ballistic Cannon 2 | . 1 1 . Launcher . | . . . . Special Weapon . | . . . . Impact Weapon . | . . . . Slashing Weapon . | . . . . Piercing Weapon . | . . . . Special Melee Weapon . | . . . . Unidentified Prototypes 1 | . . 1 . Parts Lost . | . . . . Power . | . . . . Propulsion . | . . . . Utility . | . . . . Weapon . | . . . . Highest Loss Streak . | . . . . Average Slot Usage (%) 97 | . 100 99 75 Engine 25 | . 25 25 25 Treads 16 | . 25 14 . Hover 4 | . . 4 25 Flight 3 | . . 6 . Device 11 | . . 18 . Processor 13 | . 25 6 25 Ballistic Gun 4 | . 13 . . Ballistic Cannon 18 | . 11 24 . Naked Turns . | . . . . Heaviest Build 7 | 5 6 7 3 Greatest Support 22 | 20 20 20 22 Greatest Overweight (x) 1 | . . 1 . Average Overweight (x) . | . . . . Largest Inventory Capacity . | . . . . Average Capacity . | . . . . Most Carried . | . . . . Average Carried . | . . . . Final Capacity . | . . . . Final Carried . | . . . . Class Distribution -------------------- 100% | Hacker-Mutant Dominant Class ---------------- Hacker-Mutant | -10/Materials Hacker-Mutant | -9/Materials Hacker-Mutant | -8/Materials Resources | -11 -10 -9 -8 ----------- Run | Scr Mat Mat Mat Matter Collected 680 | 145 280 138 117 Remotely . | . . . . Salvage Created 538 | . 301 237 . Parts 38 | . 13 25 . Haulers Intercepted . | . . . . Recyclers Shooed . | . . . . Parts Field Recycled . | . . . . Retrieved Matter . | . . . . Parts Self-Destructed . | . . . . Prevented . | . . . . Kills | -11 -10 -9 -8 ------- Run | Scr Mat Mat Mat Combat Hostiles Destroyed 24 | . 9 15 . Guns 5 | . 5 . . Cannons 19 | . 4 15 . Classes Destroyed 5 | . 4 1 . Recycler 1 | . 1 . . Watcher 2 | . 1 1 . Swarmer 7 | . 2 5 . Grunt 13 | . 7 6 . Sentry 4 | . . 4 . Best Kill Streak 4 | . 3 4 . Combat Bots Only 4 | . 3 4 . Max Kills in Single Turn 1 | . 1 1 . Gunslinging . | . . . . Exploded . | . . . . Melee . | . . . . Uniques/NPCs Destroyed . | . . . . Combat | -11 -10 -9 -8 -------- Run | Scr Mat Mat Mat Damage Taken 1088 | . 416 387 285 Core 901 | . 341 309 251 Absorbed by Shields . | . . . . Redirected to Core 530 | . 206 224 100 Core Remaining (%) 61 | 100 57 27 . Volleys Fired 113 | . 56 57 . Largest 1 | . 1 1 . Hottest 35 | . 35 35 . Shots Fired 113 | . 56 57 . Gun 37 | . 37 . . Cannon 76 | . 19 57 . Launcher . | . . . . Special . | . . . . Kinetic 113 | . 56 57 . Thermal . | . . . . Explosive . | . . . . Electromagnetic . | . . . . Robot Hit Streak 31 | . 31 25 . Robot Miss Streak 1 | . 1 1 . Penetration Max . | . . . . Secondary Targets . | . . . . Shots Hit Robots 99 | . 46 53 . Core Hits 39 | . 16 23 . Critical Hits . | . . . . Critical Kills . | . . . . Critical Parts Destroyed . | . . . . Melee Attacks . | . . . . Impact . | . . . . Slashing . | . . . . Piercing . | . . . . Sneak Attacks . | . . . . Combat Hostiles . | . . . . Follow-up Attacks . | . . . . Damage Inflicted 1690 | . 696 994 . Guns 406 | . 406 . . Cannons 1284 | . 290 994 . Explosions . | . . . . Melee . | . . . . Ramming . | . . . . Kinetic 1690 | . 696 994 . Thermal . | . . . . Explosive . | . . . . Electromagnetic . | . . . . Impact . | . . . . Slashing . | . . . . Piercing . | . . . . Highest Corruption . | . . . . Average Corruption . | . . . . Corruption Purged . | . . . . Overload Shots . | . . . . Overflow Damage 35 | . 4 31 . Projectiles 35 | . 4 31 . Explosions . | . . . . Melee . | . . . . Knockbacks 15 | . 5 10 . Impact . | . . . . Kinetic 12 | . 4 8 . Secondary 3 | . 1 2 . Self-Inflicted Damage . | . . . . Shots . | . . . . Rammed . | . . . . Targets Rammed . | . . . . Kicked . | . . . . Crushed . | . . . . Highest Temperature 36 | . 36 12 21 Average Temperature 7 | . 10 4 16 Received Heat Transfer 825 | . 366 216 243 Siege Activations . | . . . . Robots Corrupted . | . . . . Combat Hostiles . | . . . . Parts Fried . | . . . . Impact Corruptions . | . . . . Robots Melted . | . . . . Combat Hostiles . | . . . . Parts Melted . | . . . . Heat Transferred . | . . . . Parts Sabotaged . | . . . . Parts Stolen . | . . . . Parts Stripped . | . . . . Power Chain Reactions . | . . . . Missiles Intercepted . | . . . . Alert | -11 -10 -9 -8 ------- Run | Scr Mat Mat Mat Peak Influence 382 | . 252 382 120 Average Influence 171 | . 140 214 105 Maximum Alert Level 1 | . 1 1 . Low Security (%) 63 | 100 70 51 100 Level 1 36 | . 29 48 . Level 2 . | . . . . Level 3 . | . . . . Level 4 . | . . . . Level 5 . | . . . . High Security . | . . . . Max Security . | . . . . Squads Dispatched 6 | . . 3 3 Investigation . | . . . . Extermination . | . . . . Reinforcement 6 | . . 3 3 Assault . | . . . . Garrison . | . . . . Intercept . | . . . . Construction Impeded . | . . . . Haulers Reinforced . | . . . . Stealth | -11 -10 -9 -8 --------- Run | Scr Mat Mat Mat Distress Signals 2 | . . 1 1 Communications Jammed . | . . . . Distress Signals . | . . . . Times Spotted 55 | . 13 24 18 Peak Tracking Total 15 | . 4 6 15 Tactical Retreats 4 | . 2 1 1 Traps | -11 -10 -9 -8 ------- Run | Scr Mat Mat Mat Traps Triggered 2 | . 1 1 . Indirectly . | . . . . Trap Hack Attempts . | . . . . Triggered . | . . . . Disarmed . | . . . . Reprogrammed . | . . . . Reused . | . . . . Traps Extracted . | . . . . Installed . | . . . . Triggered . | . . . . Machines | -11 -10 -9 -8 ---------- Run | Scr Mat Mat Mat Machines Disabled . | . . . . Max in Single Turn . | . . . . Machines Sabotaged . | . . . . Garrisons Compromised . | . . . . Overloaded Fab Kills . | . . . . Fab Network Shutdowns . | . . . . Hacking | -11 -10 -9 -8 --------- Run | Scr Mat Mat Mat Machines Accessed . | . . . . Terminals . | . . . . Fabricators . | . . . . Repair Stations . | . . . . Recycling Units . | . . . . Scanalyzers . | . . . . Garrison Access . | . . . . Total Hacks . | . . . . Successful . | . . . . Failed . | . . . . Catastrophic . | . . . . Database Lockouts . | . . . . Manual . | . . . . Terminals . | . . . . Fabricators . | . . . . Repair Stations . | . . . . Recycling Units . | . . . . Scanalyzers . | . . . . Garrison Access . | . . . . Terminal Hacks . | . . . . Fabricator Hacks . | . . . . Repair Station Hacks . | . . . . Recycling Unit Hacks . | . . . . Scanalyzer . | . . . . Garrison Access Hacks . | . . . . Unauthorized Hacks . | . . . . Terminals . | . . . . Fabricators . | . . . . Repair Stations . | . . . . Recycling Units . | . . . . Scanalyzers . | . . . . Garrison Access . | . . . . Data Cores Recovered . | . . . . Used . | . . . . Hacking Detections . | . . . . Full Trace Events . | . . . . Feedback Events . | . . . . Feedback Blocked . | . . . . Robot Schematics Acquired . | . . . . Robots Built . | . . . . Matter . | . . . . Time . | . . . . Total Robot Build Rating . | . . . . Part Schematics Acquired . | . . . . Parts Built . | . . . . Matter . | . . . . Time . | . . . . Total Part Build Rating . | . . . . Parts Repaired . | . . . . Time . | . . . . Parts Recycled . | . . . . Recycled Matter . | . . . . Retrieved Matter . | . . . . Retrieved Components . | . . . . Parts Scanalyzed . | . . . . Part Schematics Acquired . | . . . . Parts Damaged . | . . . . Bothacking | -11 -10 -9 -8 ------------ Run | Scr Mat Mat Mat Used RIF Installer . | . . . . Robots Hacked . | . . . . Non-combat . | . . . . Combat . | . . . . Robot Hacks Applied . | . . . . Relay Couplers Released . | . . . . Robots Rewired . | . . . . Allies Hacked . | . . . . Hacks Repelled . | . . . . Allies | -11 -10 -9 -8 -------- Run | Scr Mat Mat Mat Total Allies . | . . . . Largest Group . | . . . . Highest-Rated Group . | . . . . Highest-Rated Ally . | . . . . Total Orders . | . . . . Ally Attacks . | . . . . Total Damage . | . . . . Kills . | . . . . Allies Corrupted . | . . . . Allies Melted . | . . . . Intel | -11 -10 -9 -8 ------- Run | Scr Mat Mat Mat Robot Analysis Total . | . . . . Derelict Logs Recovered . | . . . . Drone Launches . | . . . . Drone Recoveries . | . . . . Exploration | -11 -10 -9 -8 ------------- Run | Scr Mat Mat Mat Turns Passed 1182 | 61 385 657 79 Spaces Moved 729 | 39 157 405 128 Core 7 | 6 . 1 . Treads 362 | 33 157 171 1 Legs . | . . . . Wheels . | . . . . Hover 268 | . . 141 127 Flight 92 | . . 92 . Fastest Speed 50 | 50 160 60 60 Average Speed 115 | 143 160 112 60 Slowest Speed 160 | 160 160 160 145 Overloaded Moves . | . . . . Propulsion Burnouts . | . . . . Robots Hopped . | . . . . Cave-ins Triggered . | . . . . Exploration Rate (%) 27 | 4 36 47 23 Regions Visited 3 Branch Regions . Pre-discovered Areas . | . . . . Known Exits Taken 3 | 1 1 1 . Unknown Exits Taken . | . . . . Scrap Searched . | . . . . Spaces Dug . | . . . . Terrain Destroyed . | . . . . Melee . | . . . . Projectile . | . . . . AOE . | . . . . Actions | -11 -10 -9 -8 --------- Run | Scr Mat Mat Mat Total 954 | 42 235 547 130 Wait 95 | . 21 74 . Move 726 | 38 156 404 128 Hop . | . . . . Pick Up . | . . . . Fast Attach 13 | 4 1 7 1 Attach . | . . . . Detach . | . . . . Swap . | . . . . Drop 7 | . 1 5 1 Fire 113 | . 56 57 . Melee . | . . . . Ram . | . . . . Kick . | . . . . Crush . | . . . . Escape Stasis . | . . . . Rewire . | . . . . Trap . | . . . . Miscellaneous . | . . . . Route ------- -11/Scrapyard -10/Materials -9/Materials (discovered 3 exits: *Mat / *Min x2) -8/Materials (discovered 1 exit: *Fac) History --------- Turn | Location | Event 3 | -11/Scrapyard | Identified exit to Materials 3 | -11/Scrapyard | Discovered exit to Materials (range 15) 62 | -11/Scrapyard | Entered Materials 301 | -10/Materials | Build established: Hacker-Mutant 395 | -10/Materials | Identified exit to Materials 395 | -10/Materials | Discovered exit to Materials (range 15) 447 | -10/Materials | Entered another Materials area 449 | -9/Materials | Reached level 2 449 | -9/Materials | Reached level 3 489 | -9/Materials | Reached level 4 599 | -9/Materials | Core integrity fell below 50% 765 | -9/Materials | Identified exit to Mines 765 | -9/Materials | Discovered exit to Mines (range 5) 866 | -9/Materials | Discovered exit to Mines (range 16) 943 | -9/Materials | Reached level 5 1060 | -9/Materials | Identified exit to Materials 1060 | -9/Materials | Discovered exit to Materials (range 14) 1104 | -9/Materials | Entered another Materials area 1105 | -8/Materials | Core integrity fell below 50% 1106 | -8/Materials | Reached level 6 1153 | -8/Materials | Identified exit to Factory 1153 | -8/Materials | Discovered exit to Factory (range 16) 1156 | -8/Materials | Core integrity fell below 20% 1183 | -8/Materials | Destroyed by S-10 Pest with Light Assault Rifle Last Messages --------------- EXIT=FOUND: MATERIALS G-34 Mercenary knocked back. Lgt. Cannon severed. LOCATION=MATERIALS GOAL=ESCAPE Upgraded: KI Resistance % (+5) Upgraded: EX Resistance % (+5) Reached level 6. Acquired 117 matter. ALERT: Hostiles spotted, dispatching reinforcements to Terminal M001. ALERT: Hostiles spotted, dispatching reinforcements to Terminal M005. ALERT: Hostiles spotted, dispatching reinforcements to Terminal M003. K-01 Serf collects debris. EXIT=FOUND: FACTORY K-01 Serf collects debris. U-05 Engineer lays Concrete. Material Compactor disabled. K-01 Serf collects debris. Dropped Imp. Hover Unit. Acquired Adv. Treads. Map ----- +----------------------------------------------------+ | ????????????????????????????????????** ####??????? | | ?????????????????????????????????????* ??????? | | ?????????????????????????????????????! < ??????? | | ?????????????????????????????????????? #?????? | | ?????????????????????????????????????? #?????? | | ??????????????????????????????????????? #?????? | | ???????????????????????????????????????# #?????? | | ???????????????????????????????????????# #?????? | | ???????????????????????????????????????# #?????? | | ???????????????????????????????????????# #?????? | | ???????????????????????????????????????# ####### | | ???????????????????????????????????????# | | ???????????????????????????????????????# | | ?????????????????????????????########??# ####### | | ?????????????????????????????# """?# #?????? | | ?????????????????????????????# "T"?# #???? | | ?????????????????????????????? """ # #?? | | ?????????????????????????????? """ # # | | ?????????????????????????????? """ + + | | ?????????????????????????????# # # | | ?????????????????????????????# # #?? | | ?????????????????????????????# ! ?# #???? | | ????????????????????????##############?# #?????? | | ????????????????????????#!= #?????# #?????? | | ????????????????????????# ! #?????# ####### | | ????????????????????????#@ #?????# | | ????????????????????????#ks k! #?????# | | ????????????????????????# k #?????# | | ??????????????????? + s #?????# | | ????????????????# # !#?????# | | ????????????????# # s #?????# | | ????????????????# ?# #?????# | | ????????????????# ##+##r########## | | ????????????????# g | | ????????????????# | | ????????????????# | | ????????????????# """ """ | | ????????????????# """ """" | | ????????????????# """ """"" ! | | ????????????????# ? ?? """ """"" | | ???????????????????????""" """ | | ??????????????????????? !! | | ?????????????????????? !! | | ?????????????????????? ###+####################+## | | ????????????????????? ???????????????????????????? | | ?????????????????????????????????????????????????? | | ?????????????????????????????????????????????????? | | ?????????????????????????????????????????????????? | | ?????????????????????????????????????????????????? | | ?????????????????????????????????????????????????? | +----------------------------------------------------+ Best States ------------- Heat Dissipation 25 Energy Generation 35 Energy Capacity 175 Matter Stores 300 Matter Capacity 350 Sight Range 16 Terrain Scan Range 16 Terrain Scan Density 10 Resistance: KI 55 Resistance: TH 50 Resistance: EX 55 Resistance: EM 35 Resistance: I 35 Resistance: S 35 Resistance: P 35 Evasion (%) 53 Target Analysis 5 Recoil Reduction 1 Offensive Hacking 20 Item Schematics ----------------- None Robot Schematics ------------------ None Fabricated ------------ Nothing Alien Tech Used ----------------- None Achievements -------------- None Challenges ------------ None RPGLIKE | -11 -10 -9 -8 --------- Run | Scr Mat Mat Mat Levels Raised 5 | . . 4 1 XP Earned 14889 | 6000 1085 5271 2533 XP Spent 11550 | . 5960 4540 1050 Upgrades 32 | . 21 9 2 Core Integrity 6 | . 4 2 . Energy Generation 5 | . . 5 . Energy Storage 1 | . . 1 . Matter Storage 1 | . . 1 . Ranged Accuracy 2 | . 2 . . KI Resistance % 4 | . 3 . 1 TH Resistance % 3 | . 3 . . EX Resistance % 4 | . 3 . 1 KI Damage % 2 | . 2 . . TH Damage % 2 | . 2 . . EX Damage % 2 | . 2 . . Protomatter Created 330 | . 115 215 . Protomatter Decayed 286 | . 71 215 . Game ------ Seed SigixHelicalSpear Manual? 0 Play Time 00:26:08 Cumulative 11.5 hours Start 2019.12.17 @ 10:43:10 End 2019.12.17 @ 11:11:33 Sessions 1 Manual Loads 0 Difficulty Explorer Special Mode Winter2019/RPGLIKE Game No. 27 Rogue 22 Adventurer 0 Explorer 5 Win Type - Total 0 Types 0/0/0/0/0/0/0 Lore% 2 Gallery% 22 Achievement% 12 Wizard Run 0 Options --------- ASCII 0 Keyboard 0 Movement Mouse Keybinds 0 Fullscreen 2 Font 18/SmallcapsGlow Map View 76x50 Tactical HUD 0 Map Filters NONE Filters NONE Steam 1 RUN: b5d4143e-8fd5-492d-8d6e-d630ef63ce5b